[Event "44th Chess Olympiad Open 2022"]
[Site "Chennai"]
[Date "2022.08.03"]
[Round "6.44"]
[White "Risteski, Emil"]
[Black "Chekh Adm Khedr, Aram"]
[Result "1-0"]
[WhiteElo "2405"]
[BlackElo "2147"]
[Annotator "TA"]
[PlyCount "137"]
[EventDate "2022.??.??"]
[TimeControl "60"]

{[%evp 21,137,27,33,39,61,21,16,15,16,7,0,0,0,0,41,18,24,17,39,7,34,39,50,0,10,
0,0,0,18,8,8,8,8,8,11,4,16,2,4,6,20,8,45,33,26,27,20,18,30,27,34,33,57,56,62,
47,49,51,58,58,84,28,152,172,3018,52,29966,29972,29972,29973,29969,29972,29970,
485,485,485,485,485,485,485,29973,29974,29973,29975,29976,29976,29974,29974,
29974,29973,29972,29974,29973,29976,29975,29976,29977,29979,29978,29980,29979,
29974,29971,29968,29969,29964,29982,29982,29982,29979,29982,29983,29983,29984,
29984,29985,29996,584]} 1. e4 {[%emt 0:00:17]} c5 {[%emt 0:01:22]} 2. Nf3 {
[%emt 0:00:07]} Nc6 {[%emt 0:00:18]} 3. Nc3 {[%emt 0:00:07]} d6 {[%emt 0:00:38]
} 4. d4 {[%emt 0:03:35]} cxd4 {[%emt 0:00:38]} 5. Nxd4 {[%emt 0:00:04]} Nf6 {
[%emt 0:00:06]} 6. Bg5 {[%emt 0:00:40]} e6 {[%emt 0:01:46]} 7. Qd2 {[%emt 0:00:
00]} a6 {[%emt 0:07:09]} 8. O-O-O {[%emt 0:00:08]} h6 {[%emt 0:00:54]} 9. Nxc6
{[%emt 0:00:40]} bxc6 {[%emt 0:00:08]} 10. Bf4 {[%emt 0:00:02]} d5 {[%emt 0:00:
00]} 11. Qe3 {[%emt 0:05:18]} Be7 {[%emt 0:05:00]} 12. Be2 {[%emt 0:04:12] B66:
Sicilian: Richter-Rauzer: 7...a6 8 0-0-0 h6.} Nd7 {[%emt 0:18:41][%cal Yf6d7,
Yd7b6,Yb6a4,Ya4c5]} 13. exd5 {[%emt 0:02:14] White is much more active. The
black rooks are badly placed. has lost popularity (13.h4).} cxd5 {[%emt 0:00:
28]} 14. Qg3 $1 {[%emt 0:07:48] The position is equal.} Bg5 {[%emt 0:01:01] [#]
} 15. Bxg5 $146 {[%emt 0:05:56]} ({Predecessor:} 15. h4 Bxf4+ 16. Qxf4 Qf6 17.
Qe3 Qe5 18. Qd2 Bb7 19. g4 O-O-O 20. f4 Qc7 21. Rh3 {1-0 (79) Thavandiran,S 
(2399)-Zavala Galindo,A (1757) San Salvador 2022}) 15... Qxg5+ {[%emt 0:06:09]}
16. f4 {[%emt 0:00:09]} Qxg3 {[%emt 0:04:12]} 17. hxg3 {[%emt 0:00:34]} Nb6 {
[%emt 0:17:23]} 18. Rhe1 {[%emt 0:03:50][%cal Yf4f5]} O-O {[%emt 0:03:24]} 19.
Bf3 {[%emt 0:07:41]} Bd7 {[%emt 0:03:55]} 20. Ne2 {[%emt 0:05:03]} (20. f5 $5)
20... Na4 {[%emt 0:04:07]} 21. b3 {[%emt 0:04:48]} Nc5 {[%emt 0:00:04]} 22. Kd2
{[%emt 0:15:10]} (22. Bxd5 $5 exd5 23. Rxd5 $14) 22... a5 {[%emt 0:00:28]} 23.
c4 {[%emt 0:00:53]} Rab8 $1 {[%emt 0:03:11]} 24. cxd5 {[%emt 0:03:56]} exd5 {
[%emt 0:00:03]} 25. Rc1 {[%emt 0:04:20]} Ne4+ {[%emt 0:00:13]} 26. Bxe4 {
[%emt 0:01:08]} dxe4 {[%emt 0:00:06]} 27. Nd4 {[%emt 0:00:52]} Rfd8 {[%emt 0:
02:38]} 28. Ke3 {[%emt 0:02:13]} a4 {[%emt 0:00:00]} 29. Rc3 {[%emt 0:04:16]} (
29. f5 {looks sharper.} axb3 30. axb3 Bb5 31. b4) 29... axb3 {[%emt 0:01:54]} (
29... h5 {feels hotter.} 30. f5 g6 31. fxg6 fxg6 32. Rc7 axb3 33. axb3 Rb4) 30.
axb3 {[%emt 0:00:07]} Rb4 {[%emt 0:01:03]} 31. Rc4 {[%emt 0:01:48]} Rdb8 {
[%emt 0:01:33]} 32. Rxb4 {[%emt 0:01:00]} ({Avoid the trap} 32. Kxe4 $2 Rxc4
33. bxc4 Re8+ 34. Kd5 Rxe1 $19) 32... Rxb4 {[%emt 0:00:00]} 33. Kxe4 $14 {
[%emt 0:07:45] Endgame KRB-KRN} Bc6+ {[%emt 0:00:00]} 34. Kd3 {[%emt 0:00:08]}
Bxg2 {[%emt 0:00:14]} 35. Kc3 {[%emt 0:00:38]} Rb7 {[%emt 0:00:47]} 36. b4 {
[%emt 0:00:17]} Kh7 {[%emt 0:00:24]} 37. b5 {[%emt 0:01:03]} g5 {[%emt 0:00:57]
} 38. fxg5 {[%emt 0:01:46]} hxg5 {[%emt 0:00:00]} 39. Re2 {[%emt 0:01:24]} Rc7+
{[%emt 0:02:26]} 40. Kb4 {[%emt 0:02:58]} Bb7 {[%emt 0:00:50]} 41. Nc6 {
[%emt 0:32:57]} (41. Ka5 $16) 41... Kg6 {[%emt 0:00:00] [#]} (41... Bxc6 $2 42.
Rc2 $18) (41... Rxc6 $11 42. Re7 (42. bxc6 Bxc6 43. Kc5 Bd7 $14) 42... Kg6) 42.
Kc5 $1 $16 {[%emt 0:00:00]} Bxc6 $2 {[%emt 0:00:00]} (42... f5 43. Kd6 Rg7 44.
Ne7+ Kh5) 43. bxc6 $18 {[%emt 0:00:00] Threatening mate with Kd6. KR-KR} f5 $2
{[%emt 0:00:17] This costs Black the game.} (43... Kf5 $14) 44. Kd6 {[%emt 0:
00:00]} Rc8 {[%emt 0:00:30]} 45. Kd7 {[%emt 0:00:00]} Ra8 {[%emt 0:00:06]} 46.
c7 {[%emt 0:00:00]} Kh5 {[%emt 0:00:11] [#]} 47. Ra2 $3 {[%emt 0:00:00]} Rxa2 {
[%emt 0:14:56]} 48. c8=Q {[%emt 0:00:00] Prevents Rc2. KQ-KR} Rg2 {[%emt 0:02:
42]} 49. Ke6 {[%emt 0:00:00] Kf6 would kill now.} Kg4 {[%emt 0:01:04]} 50. Kf6
{[%emt 0:00:00]} Rxg3 {[%emt 0:02:31]} (50... Kxg3 $18 51. Kxf5 Kh2) 51. Qxf5+
{[%emt 0:00:00] White mates.} Kh4 {[%emt 0:00:03]} 52. Kg6 {[%emt 0:00:00]} Rg2
{[%emt 0:00:00]} 53. Qf3 {[%emt 0:00:00]} Rg4 {[%emt 0:01:05]} 54. Kh6 {
[%emt 0:00:00]} Rf4 {[%emt 0:00:32]} 55. Qh5+ {[%emt 0:00:00]} Kg3 {[%emt 0:00:
04]} 56. Kxg5 {[%emt 0:00:00]} Re4 {[%emt 0:00:33]} 57. Qd1 {[%emt 0:00:00]}
Re5+ {[%emt 0:00:00]} 58. Kf6 {[%emt 0:00:00]} Re3 {[%emt 0:00:06]} 59. Kf5 {
[%emt 0:00:00]} Rf3+ {[%emt 0:00:46]} 60. Kg5 {[%emt 0:00:00]} Re3 {[%emt 0:00:
29]} 61. Qg1+ {[%emt 0:00:54]} Kf3 {[%emt 0:00:07]} 62. Qg4+ {[%emt 0:00:34]}
Kf2 {[%emt 0:00:00]} 63. Kf4 {[%emt 0:00:15]} Re2 {[%emt 0:00:38]} 64. Qh4+ {
[%emt 0:01:13]} Kg2 {[%emt 0:00:05]} 65. Qg5+ {[%emt 0:00:15]} Kf2 {[%emt 0:00:
05]} 66. Qc5+ {[%emt 0:00:06]} Kg2 {[%emt 0:00:05]} 67. Qd5+ {[%emt 0:00:35]}
Kf2 {[%emt 0:00:00]} 68. Qd1 {[%emt 0:02:41]} Re1 {[%emt 0:00:23]} 69. Qf3+ {
[%emt 0:00:18] Weighted Error Value: White=0.25 (precise) /Black=0.42} 1-0

[Event "44th Chess Olympiad Open 2022"]
[Site "Chennai"]
[Date "2022.08.03"]
[Round "6.44"]
[White "Nikolovski, Nikola"]
[Black "Koniahli, Malek."]
[Result "1-0"]
[WhiteElo "2366"]
[BlackElo "2238"]
[Annotator "TA"]
[PlyCount "53"]
[EventDate "2022.??.??"]
[TimeControl "60"]

{[%evp 17,53,29,32,0,8,0,25,0,39,38,38,38,29,36,37,34,39,48,93,71,104,108,119,
108,125,110,171,161,382,390,760,596,4139,3952,3356,2828,29979,29977]} 1. e4 {
[%emt 0:00:07]} c6 {[%emt 0:00:06]} 2. d4 {[%emt 0:00:33]} d5 {[%emt 0:00:03]}
3. exd5 {[%emt 0:00:22]} cxd5 {[%emt 0:00:03]} 4. Bd3 {[%emt 0:00:11]} Nc6 {
[%emt 0:00:06]} 5. c3 {[%emt 0:00:07]} Nf6 {[%emt 0:00:04]} 6. Bf4 {[%emt 0:00:
00]} Bg4 {[%emt 0:00:13]} 7. Qb3 {[%emt 0:00:28]} Qd7 {[%emt 0:00:18]} 8. Nd2 {
[%emt 0:00:53]} e6 {[%emt 0:00:06]} 9. Ngf3 {[%emt 0:00:31]} Bd6 {[%emt 0:00:
00]} 10. Bg3 {[%emt 0:06:10] B13: Caro-Kann: Exchange Variation and
Panov-Botvinnik Attack.} O-O {[%emt 0:09:39]} 11. O-O {[%emt 0:00:22]} Bh5 {
[%emt 0:05:03]} 12. Rae1 {[%emt 0:18:17][%cal Ya1e1,Ye1e3,Ye3h3] White has an
edge.} Bg6 {[%emt 0:01:43]} 13. Bxg6 {[%emt 0:01:42]} hxg6 {[%emt 0:03:18]} 14.
Bxd6 {[%emt 0:04:19]} Qxd6 {[%emt 0:00:01]} 15. Ne5 {[%emt 0:00:47] [#]} (15.
Qxb7 Rab8 16. Qa6 Rb6 $15) 15... Qc7 $146 {[%emt 0:00:00]} ({Predecessor:} 
15... Rab8 16. Ndf3 b5 17. Ng5 b4 18. Qc2 Nh7 19. Nxh7 Kxh7 20. f4 Nxe5 21.
fxe5 Qe7 {0-1 (53) Li,E (1561)-Jackson,E (1435) Leamington Spa 2021}) 16. f4 {
[%emt 0:07:43]} Rfe8 {[%emt 0:02:51]} 17. Re3 {[%emt 0:03:51]} Nh7 {[%emt 0:02:
34]} 18. Rh3 {[%emt 0:12:15]} Nf8 {[%emt 0:00:00]} 19. Qd1 {[%emt 0:01:34] 0x0.
0024c1a41309dp-1022s more active pieces. The black rooks are badly placed.} f6
{[%emt 0:02:06]} 20. Nd3 {[%emt 0:04:12]} b5 {[%emt 0:14:10]} 21. Nf3 {[%emt 0:
04:45]} Ne7 {[%emt 0:08:15]} (21... a5 $16 {was worth a try.}) 22. g4 $18 {
[%emt 0:06:19] And now Qe1 would win.} Nd7 $2 {[%emt 0:04:02]} (22... Nc8 {
is a better defense.} 23. Qe1 Nd6) 23. Qe1 {[%emt 0:01:51]} Qb6 {[%emt 0:06:16]
} (23... Nc6 24. Ng5 (24. Qh4 Kf7 $18) 24... Qb6) 24. Qh4 {[%emt 0:04:24][%cal
Yd3e5] Strongly threatening Nde5!} Rf8 {[%emt 0:08:45] [#]} 25. Nde5 {[%emt 0:
03:17]} Nxe5 {[%emt 0:02:51]} 26. fxe5 {[%emt 0:00:25][%cal Yf4e5,Ye5f6]
Intending Ng5 and mate.} Kf7 {[%emt 0:02:27]} 27. exf6 {[%emt 0:00:38]
Weighted Error Value: White=0.19 (very precise) /Black=0.73} 1-0

[Event "44th Chess Olympiad Open 2022"]
[Site "Chennai"]
[Date "2022.08.03"]
[Round "6.44"]
[White "Eiti, Bashir"]
[Black "Veljanoski, Andrej"]
[Result "1-0"]
[WhiteElo "2337"]
[BlackElo "2162"]
[Annotator "TA"]
[PlyCount "93"]
[EventDate "2022.??.??"]
[TimeControl "60"]

{[%evp 14,93,-6,-24,-14,-11,11,-15,5,0,18,18,46,0,68,49,79,77,86,94,90,97,102,
98,99,99,105,90,91,86,97,92,116,115,116,116,116,115,127,120,143,96,104,109,111,
102,129,131,209,214,214,211,210,213,327,336,336,289,303,317,344,324,656,641,
635,636,727,725,743,695,816,776,770,748,807,808,1352,1347,1325,1306,1134,1112]
} 1. Nf3 {[%emt 0:00:06]} d5 {[%emt 0:00:44]} 2. g3 {[%emt 0:00:12]} g6 {
[%emt 0:00:31]} 3. Bg2 {[%emt 0:01:16]} Bg7 {[%emt 0:00:56]} 4. O-O {[%emt 0:
00:00]} e5 {[%emt 0:00:43]} 5. c4 {[%emt 0:01:41]} dxc4 {[%emt 0:00:57]} 6. Na3
{[%emt 0:04:57]} Nc6 {[%emt 0:09:12]} 7. Nxc4 {[%emt 0:02:04]} Nge7 {[%emt 0:
00:00]} 8. d3 {[%emt 0:01:10]} O-O {[%emt 0:01:12] A20: English Opening: 1...
e5.} 9. Rb1 {[%emt 0:03:51]} Nd5 {[%emt 0:12:12] [#]} 10. Bg5 $146 {[%emt 0:00:
00]} ({Predecessor:} 10. Bd2 Re8 11. b4 Nd4 12. Na5 a6 13. Re1 c6 14. a3 Re7
15. Rc1 Bg4 16. Ng5 {0-1 (40) Miroshnichenko,E (2634)-Zaragatski,I (2376)
Hamburg 2005}) 10... Qd7 {[%emt 0:03:12] The position is equal.} (10... f6 $5 {
[%cal Rf6g5]} 11. Bd2 Nb6 $11) 11. Qd2 {[%emt 0:06:33]} Re8 {[%emt 0:01:31]}
12. Bh6 {[%emt 0:06:27]} Bh8 {[%emt 0:01:48]} 13. Rfc1 {[%emt 0:03:44]} (13.
Rbc1 $14) 13... b6 {[%emt 0:04:48]} (13... a5 $11) 14. Ne3 {[%emt 0:13:39]
aiming for Nxd5.} Nxe3 {[%emt 0:18:53]} 15. Bxe3 {[%emt 0:00:08][%cal Yf3e5]
Hoping for Nxe5!} (15. Qxe3 Bb7 $11) 15... Bb7 {[%emt 0:00:15] [#]} 16. Qc2 $1
{[%emt 0:02:28]} e4 {[%emt 0:10:59]} 17. Ng5 {[%emt 0:10:14]} exd3 {[%emt 0:00:
00]} 18. Qxd3 {[%emt 0:02:08]} ({Much worse is} 18. exd3 Nb4 19. Qxc7 Qxc7 20.
Rxc7 Bxg2 21. Kxg2 Nd5 $14) 18... Qxd3 {[%emt 0:02:33]} 19. exd3 {[%emt 0:00:
00]} Nd8 {[%emt 0:01:02]} 20. Bxb7 {[%emt 0:01:25]} Nxb7 {[%emt 0:00:02]} 21.
Rxc7 {[%emt 0:00:27]} Nd6 {[%emt 0:00:09]} 22. Bf4 {[%emt 0:10:56] White is
more active.} Be5 {[%emt 0:02:37]} 23. Bxe5 {[%emt 0:00:08]} Rxe5 {[%emt 0:00:
00]} 24. Nf3 {[%emt 0:01:53]} Ree8 {[%emt 0:03:09]} 25. Rbc1 {[%emt 0:01:52]}
Nb5 {[%emt 0:02:47]} 26. Rb7 {[%emt 0:01:20]} Rad8 {[%emt 0:04:54]} 27. Re1 {
[%emt 0:01:16]} (27. a4 $142 Rxd3 28. Ng5 (28. axb5 Rxf3 29. Kf1 Re5 $11))
27... Rxe1+ $16 {[%emt 0:01:27]} 28. Nxe1 {[%emt 0:00:03] Endgame KRN-KRN} Rd4
{[%emt 0:02:10]} 29. a3 {[%emt 0:00:12][%cal Ya2a3,Ya3a4]} Kg7 {[%emt 0:01:24]}
30. f4 {[%emt 0:01:16]} Rd6 {[%emt 0:06:31]} (30... Kf6 $16 31. Kf2 Ke6) 31. a4
$18 {[%emt 0:00:33]} Nd4 {[%emt 0:00:06]} 32. Rxa7 {[%emt 0:00:12]} Re6 {
[%emt 0:00:52]} 33. Kf1 {[%emt 0:00:08]} Nf5 {[%emt 0:00:00]} (33... Kf8 $142
34. b4 Ke8) 34. Nf3 {[%emt 0:02:05]} Ne3+ {[%emt 0:00:45]} 35. Kg1 {[%emt 0:00:
19]} Ng4 {[%emt 0:01:27]} 36. Ng5 {[%emt 0:04:24]} Re1+ {[%emt 0:01:53]} 37.
Kg2 {[%emt 0:00:05]} h5 $2 {[%emt 0:01:06]} (37... Rb1 38. Nxf7 Rxb2+ 39. Kh3
h5 40. Ne5+ Kh6 41. Nxg4+ hxg4+ 42. Kxg4 Rxh2) 38. Rxf7+ {[%emt 0:00:32] White
is clearly winning.} Kg8 {[%emt 0:00:03]} 39. h3 {[%emt 0:00:00]} Nh6 {[%emt 0:
01:54]} 40. Rf6 {[%emt 0:00:36][%csl Yb6,Yg6]} Kg7 {[%emt 0:00:13]} 41. Rxb6 {
[%emt 0:30:57]} Nf5 {[%emt 0:30:07]} 42. Rb7+ {[%emt 0:01:05]} Kg8 {[%emt 0:00:
02]} 43. a5 {[%emt 0:02:56]} Re2+ {[%emt 0:00:00]} 44. Kg1 {[%emt 0:01:28]} Ne3
{[%emt 0:00:17]} 45. a6 {[%emt 0:01:41] [#] White threatens Rb8+ and mate.}
Rg2+ {[%emt 0:00:00]} 46. Kh1 {[%emt 0:00:00] White wants to mate with a7.} Rf2
{[%emt 0:00:00]} 47. Ne4 {[%emt 0:00:00] Weighted Error Value: White=0.07 
(flawless) /Black=0.31} 1-0

[Event "44th Chess Olympiad Open 2022"]
[Site "Chennai"]
[Date "2022.08.03"]
[Round "6.44"]
[White "Altorky, Amer"]
[Black "Lazov, Toni"]
[Result "0-1"]
[WhiteElo "2040"]
[BlackElo "2374"]
[Annotator "TA"]
[PlyCount "76"]
[EventDate "2022.??.??"]
[TimeControl "60"]

{[%evp 11,76,-7,7,0,19,-50,-18,-41,-28,-33,-31,-17,-22,-98,-89,-101,-99,-120,
-124,-105,-114,-118,-116,-117,-58,-70,-27,-26,-20,-23,-25,-18,8,-7,-12,-15,-9,
-29,0,0,0,-18,0,-600,-618,-608,-592,-1041,-275,-263,-260,-298,-298,-291,-282,
-593,-579,-998,-998,-994,-983,-983,-910,-2016,-1912,-12816,-5393]} 1. e4 {
[%emt 0:00:07]} c5 {[%emt 0:00:07]} 2. Nc3 {[%emt 0:00:19]} Nc6 {[%emt 0:00:09]
} 3. g3 {[%emt 0:00:16]} g6 {[%emt 0:00:08]} 4. Bg2 {[%emt 0:00:09]} Bg7 {
[%emt 0:00:02]} 5. d3 {[%emt 0:00:09]} Rb8 {[%emt 0:00:55]} 6. f4 {[%emt 0:00:
00]} b5 {[%emt 0:00:32]} 7. e5 {[%emt 0:06:45] B24: Closed Sicilian: 3 g3
sidelines.} Nh6 {[%emt 0:13:24] [#]} 8. Be3 $146 {[%emt 0:05:55]} (8. Bxc6 $11
dxc6 9. Be3) ({Predecessor:} 8. Nge2 O-O 9. O-O b4 10. Na4 Qa5 11. c3 Bb7 12.
Bd2 d6 13. cxb4 cxb4 14. Rc1 {½-½ (35) Buhmann,T (2235)-Tritt,M (1896) ICCF
email 2008}) 8... Nd4 {[%emt 0:06:48]} 9. Nf3 {[%emt 0:05:57] The position is
equal.} Nhf5 {[%emt 0:04:57]} 10. Bf2 {[%emt 0:00:28]} O-O {[%emt 0:01:00]} 11.
O-O {[%emt 0:01:26]} d6 {[%emt 0:03:19]} 12. Re1 {[%emt 0:21:40]} (12. Ne4 $11
{remains equal.}) 12... b4 {[%emt 0:08:21]} 13. Ne4 {[%emt 0:11:26] [#]} Nxf3+
$1 {[%emt 0:00:50]} 14. Bxf3 {[%emt 0:05:20]} dxe5 {[%emt 0:00:55]} 15. fxe5 {
[%emt 0:00:05]} Bxe5 {[%emt 0:00:28]} 16. c3 {[%emt 0:00:12]} bxc3 {[%emt 0:00:
00]} 17. bxc3 {[%emt 0:00:03]} Qa5 {[%emt 0:01:08]} (17... Nd6 $17 {aiming for
...Nxe4.} 18. Rc1 Nxe4 19. Rxe4 Qc7) 18. Rc1 $15 {[%emt 0:19:52]} Bd6 {[%emt 0:
00:00]} ({Reject} 18... Qxa2 19. Bxc5 a5 20. d4 $11) 19. g4 {[%emt 0:04:29]}
Ng7 {[%emt 0:00:08] Black wants to play ...Bf4.} 20. Nxd6 {[%emt 0:01:27]} (20.
Bh4 {looks sharper.} Rb2 21. Nxd6 exd6 22. Be7) 20... exd6 {[%emt 0:00:02]} 21.
Bh4 {[%emt 0:00:13]} Be6 {[%emt 0:10:59]} ({Don't do} 21... Qxa2 22. Be7 $14) (
21... Rb2 {with more complications.} 22. Be7 Re8 23. Bxd6 Qb6) 22. Be7 {
[%emt 0:01:05]} Rfe8 {[%emt 0:02:09]} 23. Bxd6 {[%emt 0:00:54] A strong pair
of Bishops.} Rb2 {[%emt 0:00:27]} 24. Be5 {[%emt 0:07:07]} Rxa2 {[%emt 0:00:53]
} (24... c4 $5 {[%cal Rc4d3]} 25. d4 Bd5 $11) 25. Rb1 {[%emt 0:03:45]} Qd8 {
[%emt 0:06:05][%cal Yh7h5]} 26. d4 {[%emt 0:02:07]} Qg5 {[%emt 0:05:17][%cal
Ye6g4]} 27. Bxg7 $2 {[%emt 0:00:36]} (27. Qc1 $11 Qh4 28. Bg3) 27... Kxg7 $19 {
[%emt 0:00:28]} 28. Re5 {[%emt 0:00:32]} Qf4 {[%emt 0:01:07]} 29. Be2 {[%emt 0:
00:33]} Rd2 $2 {[%emt 0:02:10]} (29... f6 30. Rb7+ Kf8) 30. Qf1 {[%emt 0:00:27]
} Qxf1+ {[%emt 0:00:10]} 31. Bxf1 {[%emt 0:00:21]} cxd4 {[%emt 0:00:00]} 32.
cxd4 {[%emt 0:00:03]} Rxd4 {[%emt 0:00:17]} 33. Rb7 $2 {[%emt 0:00:00]} (33. h3
{is a better chance.}) 33... Rxg4+ {[%emt 0:00:34] Black is clearly winning.}
34. Kf2 {[%emt 0:00:01]} Rf4+ {[%emt 0:00:26]} 35. Kg2 {[%emt 0:00:50] [#]}
Bh3+ $1 {[%emt 0:01:27]} 36. Kg3 {[%emt 0:00:46]} Rxe5 {[%emt 0:00:06]} 37.
Bxh3 {[%emt 0:00:26]} Ra4 {[%emt 0:00:41] ( -> ... Re3+)} 38. Bd7 {[%emt 0:00:
11]} Re7 {[%emt 0:00:30] Weighted Error Value: White=1.08/Black=0.31} 0-1

[Event "44th Chess Olympiad Open 2022"]
[Site "Chennai"]
[Date "2022.08.03"]
[Round "6.45"]
[White "Rakotomaharo, Fy Antenaina"]
[Black "Ibarra Chami, Luis Fernando"]
[Result "1-0"]
[WhiteElo "2490"]
[BlackElo "2452"]
[Annotator "TA"]
[PlyCount "105"]
[EventDate "2022.??.??"]
[TimeControl "60"]

{[%evp 16,105,12,0,1,8,0,0,9,13,7,8,19,9,2,4,8,8,14,-7,0,-19,-4,-19,0,0,0,-31,
0,0,7,-15,0,0,0,0,0,0,0,0,0,0,0,0,0,0,7,7,7,7,19,0,22,6,83,12,89,41,113,116,
114,64,385,381,381,367,392,341,493,458,430,391,534,355,672,594,537,0,708,708,
682,649,1131,764,746,706,1958,1851,1674,1798,1568,1471]} 1. e4 {[%emt 0:00:02]}
c5 {[%emt 0:00:11]} 2. Nf3 {[%emt 0:00:07]} Nc6 {[%emt 0:00:26]} 3. d4 {
[%emt 0:00:06]} cxd4 {[%emt 0:00:11]} 4. Nxd4 {[%emt 0:00:07]} Nf6 {[%emt 0:00:
00]} 5. Nc3 {[%emt 0:00:07]} e5 {[%emt 0:00:07]} 6. Ndb5 {[%emt 0:00:20]} d6 {
[%emt 0:00:08]} 7. Nd5 {[%emt 0:00:05]} Nxd5 {[%emt 0:00:10]} 8. exd5 {[%emt 0:
00:00]} Nb8 {[%emt 0:00:56]} 9. a4 {[%emt 0:00:26]} Be7 {[%emt 0:00:53] B33:
Sicilian: Pelikan and Sveshnikov Variations.} 10. Bd2 {[%emt 0:00:18]} O-O {
[%emt 0:00:47]} 11. Be2 {[%emt 0:02:43]} f5 {[%emt 0:01:21] The position is
equal.} 12. a5 {[%emt 0:00:33]} f4 {[%emt 0:07:57]} 13. O-O {[%emt 0:13:42]}
Bf5 {[%emt 0:05:16] [#]} 14. c4 $146 {[%emt 0:08:07][%cal Yc4c5]} ({
Predecessor:} 14. Bb4 a6 15. Na3 Nd7 16. Bg4 Qc8 17. Bxf5 Rxf5 18. Qd3 Nf6 19.
Nc4 e4 20. Qh3 {0-1 (68) Pichot,A (2590)-Carlsen,M (2876) chess24.com INT 2019}
) 14... a6 {[%emt 0:13:44]} 15. Nc3 {[%emt 0:00:12]} Nd7 {[%emt 0:00:06]} 16.
Bg4 {[%emt 0:21:42]} g6 {[%emt 0:12:39]} (16... Bxg4 {keeps more tension.} 17.
Qxg4 Rc8 18. b3 Nc5) 17. Re1 {[%emt 0:09:59]} Rc8 {[%emt 0:04:38]} 18. Bxf5 {
[%emt 0:03:23]} gxf5 {[%emt 0:00:23]} 19. Qe2 {[%emt 0:00:20][%cal Yd2f4]} Rf7
{[%emt 0:07:19]} 20. Na4 {[%emt 0:03:18]} Rg7 {[%emt 0:03:57]} 21. Ra3 {
[%emt 0:00:53]} Kh8 {[%emt 0:03:43]} 22. Kh1 {[%emt 0:09:01]} Qg8 {[%emt 0:00:
00]} 23. g3 {[%emt 0:02:13]} fxg3 {[%emt 0:02:54]} (23... Nf6 {looks sharper.}
24. Nb6 Re8 25. gxf4 Ne4) 24. Rxg3 {[%emt 0:03:23]} Rxg3 {[%emt 0:08:52]} 25.
fxg3 {[%emt 0:07:24]} Nf6 {[%emt 0:09:58]} 26. Nb6 {[%emt 0:02:43]} Rf8 {
[%emt 0:02:05]} 27. Rf1 {[%emt 0:00:49]} Ne4 {[%emt 0:01:15]} 28. Be1 {[%emt 0:
00:00]} Qg6 {[%emt 0:02:24]} 29. b4 {[%emt 0:00:25]} Rf7 {[%emt 0:00:32]} 30.
Na4 {[%emt 0:02:54]} Kg8 {[%emt 0:00:20]} 31. Nc3 {[%emt 0:05:28]} Nxc3 {
[%emt 0:05:28]} 32. Bxc3 {[%emt 0:00:05][%cal Yc4c5]} Qg4 {[%emt 0:00:39]} 33.
Qd3 {[%emt 0:02:33]} e4 {[%emt 0:00:34]} 34. Qd1 {[%emt 0:00:37]} Qg6 {[%emt 0:
00:00] [#]} (34... Bg5 $11 {keeps the balance.}) 35. Bd4 {[%emt 0:00:25]} (35.
Qd4 Bf6 36. Qd2 Qg5 $11) (35. Bd2 $1 $16) 35... Bf8 {[%emt 0:00:27]} (35... Bg5
$1 $11 {remains equal.}) 36. Bb6 {[%emt 0:01:43] White is more active.} (36.
Be3 $16) 36... Re7 {[%emt 0:01:06]} ({Black should try} 36... Bh6 $14) 37. c5
$16 {[%emt 0:00:23] Threatens to win with c6.} e3 {[%emt 0:00:11]} 38. Qf3 {
[%emt 0:00:04]} (38. Re1 $16) 38... Re8 $2 {[%emt 0:00:53]} (38... e2 $2 39.
Re1 $18) (38... dxc5 $1 $14 39. Bxc5 Re5) 39. c6 $18 {[%emt 0:00:40]} bxc6 {
[%emt 0:00:05]} (39... e2 $2 40. Re1 bxc6 41. dxc6 $18 (41. Rxe2 c5 $16)) 40.
dxc6 {[%emt 0:00:29]} Qe6 {[%emt 0:01:17]} 41. Re1 {[%emt 0:06:59][%cal Re1e3]}
e2 {[%emt 0:06:13]} (41... Bh6 $142 42. c7 Qe4) 42. c7 {[%emt 0:08:47][%cal
Ye1e2] Black must now prevent Rxe2!} Qc4 {[%emt 0:00:58]} 43. Qxf5 {[%emt 0:00:
13]} Bg7 {[%emt 0:10:35]} 44. Qh5 {[%emt 0:07:35]} Re5 {[%emt 0:00:00]} (44...
Qe4+ 45. Kg1 Bd4+ 46. Bxd4 Qxd4+ 47. Kg2 Qe4+ 48. Kh3 Qe6+ 49. Qg4+ Qxg4+ 50.
Kxg4 Rc8 51. Rxe2 Rxc7) 45. Qf3 {[%emt 0:03:07] Hoping for Qa8+.} Re8 {[%emt 0:
00:14] Inhibits Qa8.} 46. Qh5 $40 {[%emt 0:02:03] White has some attack.} (46.
Rxe2 Rxe2 47. Qxe2 (47. Qa8+ Kf7 $11) 47... Qxe2 $16) 46... Re5 {[%emt 0:01:10]
} 47. Qh4 {[%emt 0:00:12] White is clearly winning.} Qc3 {[%emt 0:01:10] [#]}
48. Kg2 $1 {[%emt 0:00:05] Strongly threatening Qd8+.} ({Less strong is} 48.
Qd8+ Bf8 49. Bf2 (49. Rxe2 $2 Rxe2 50. Qg5+ Kh8 $19) 49... Rf5 $14) 48... Kf7 {
[%emt 0:00:47]} 49. Qf4+ {[%emt 0:02:54]} Bf6 {[%emt 0:00:00]} 50. Bd4 {
[%emt 0:01:47]} Qxe1 {[%emt 0:01:54]} 51. c8=Q {[%emt 0:00:07] Intending Qd7+
and mate.} Qh1+ {[%emt 0:00:21]} 52. Kxh1 {[%emt 0:00:40] Threatening mate
with Qd7+.} e1=Q+ {[%emt 0:00:32]} 53. Kg2 {[%emt 0:00:52] Weighted Error
Value: White=0.27 (precise) /Black=0.37} 1-0